bitfinex-derivatives/quotes_SOLF0:USTF0_20251202
["timestamp","ask_amount","ask_price","bid_price","bid_amount"]
[1764690643542,0.05257108,137.9,137.87,7.38]
[1764690643742,69.14,137.98,137.9,101.5292]
[1764690643942,0.04790049,137.95,137.91,7.38]
[1764690644144,0.04790049,137.95,137.91,13.9059]
[1764690644339,0.04790049,137.95,137.92,7.38]
[1764690645348,0.04790049,137.95,137.9,7.38]
[1764690646438,0.04790049,137.95,137.92,108.8879]
[1764690646657,76.68,138.04,137.93,7.38]
[1764690646856,7.54,138.03,137.93,7.38]
[1764690647051,7.54,138.02,137.88,108.9212]
[1764690647349,7.54,138.0,137.91,7.38]
[1764690647656,0.05092735,137.97,137.94,0.04790049]
[1764690647851,7.59092735,137.97,137.94,0.04790049]
[1764690648548,0.05092735,137.97,137.94,7.42790049]
[1764690649252,7.54,138.06,137.95,7.38]
[1764690649455,76.66,138.06,137.96,7.38]
[1764690649750,7.54,138.04,137.96,7.38]
[1764690650351,0.05183541,138.01,137.99,0.04618816]
[1764690650656,7.59183541,138.01,137.99,0.04618816]
[1764690651664,7.54,138.0,137.99,0.04618816]
[1764690652851,8.98,138.0,137.92,7.38]
[1764690653151,69.1,137.99,137.92,7.38]
[1764690653747,7.54,138.0,137.92,7.38]
[1764690653954,0.05405887,137.97,137.95,7.42672982]
[1764690654143,0.05215549,137.97,137.95,7.42774291]
[1764690655255,0.05215549,137.97,137.95,13.95194291]
[1764690655457,0.05215549,137.97,137.95,7.42774291]
[1764690655650,26.77195425,138.31,137.95,7.42774291]
[1764690655651,7.54,138.11,138.0,6.5221]
[1764690655853,69.06,138.1,137.98,7.38]
[1764690656055,7.54,138.09,137.98,7.38]
[1764690656353,7.54,138.09,138.0,7.38]
[1764690656557,0.04745111,138.06,138.03,0.04610325]
[1764690656954,7.54,138.05,138.03,0.04610325]
[1764690658153,7.54,138.05,137.96,7.38]
[1764690658154,8.98,138.05,137.96,7.38]
[1764690658351,7.54,138.05,137.96,7.38]
[1764690659159,0.04923198,138.02,137.99,0.04954649]
[1764690660252,0.04923198,138.02,137.99,7.42954649]
[1764690660457,7.54,138.1,138.02,7.38]
[1764690660658,76.54,138.13,138.03,7.38]
[1764690661054,76.54,138.13,138.03,13.9005]
[1764690661258,76.54,138.13,138.04,7.38]
[1764690661459,101.3258,138.18,138.04,7.38]
[1764690661460,7.54,138.26,138.14,7.38]
[1764690661664,101.2127,138.34,138.11,101.3751]
[1764690661665,8.88270153,138.37,138.23,7.38]
[1764690661863,7.54,138.35,138.19,7.38]
[1764690662054,7.54,138.34,138.2,7.38]
[1764690662254,7.54,138.29,138.2,7.38]
[1764690662770,0.05308259,138.26,138.23,7.43496374]
[1764690663452,0.05308259,138.26,138.23,108.71896374]
[1764690663657,76.5,138.33,138.24,7.38]
[1764690663850,7.54,138.33,138.24,7.38]
[1764690664050,68.96,138.33,138.24,7.38]
[1764690664260,13.05796051,138.36,138.24,7.38]
[1764690664566,0.04677226,138.31,138.29,0.05316459]
[1764690664870,0.04831755,138.31,138.29,0.04570935]
[1764690665167,7.54,138.3,138.29,0.04570935]
[1764690665463,7.54,138.3,138.2,7.38]
[1764690665864,7.54,138.28,138.17,21.98171087]
[1764690666063,68.9,138.27,138.18,7.38]
[1764690666366,7.54,138.28,138.12,7.38]
[1764690666367,7.54,138.25,138.12,7.38]
[1764690666565,7.54,138.25,138.17,7.42608346]
[1764690666566,0.0460117,138.2,138.17,7.42608346]
[1764690667157,68.9,138.25,138.17,7.42608346]
[1764690667465,7.54,138.29,138.18,7.38]
[1764690667466,68.88,138.27,138.18,7.38]
[1764690667956,7.54,138.33,138.19,7.38]
[1764690668165,68.88,138.32,138.22,7.38]
[1764690668358,68.88,138.32,138.25,0.05133214]
[1764690668359,0.05175883,138.27,138.25,0.05133214]
[1764690668563,7.54,138.25,138.11,7.38]
[1764690668757,7.27,138.24,138.11,7.38]
[1764690668954,68.86,138.23,138.11,7.38]
[1764690669153,76.13,138.23,138.11,7.38]
[1764690669354,7.27,138.22,138.11,7.38]
[1764690669663,0.0471222,138.18,138.15,0.05085409]
[1764690670069,0.0471222,138.18,138.15,7.01085409]
[1764690670668,76.11,138.28,138.17,6.96]
[1764690670861,7.27,138.27,138.17,6.96]
[1764690671460,0.05006833,138.23,138.21,0.05278155]
[1764690671770,0.05495028,138.23,138.21,7.01278155]
[1764690672468,0.05495028,138.23,138.21,0.05278155]
[1764690672858,7.32495028,138.23,138.21,0.05278155]
[1764690674064,0.05495028,138.23,138.21,0.05278155]
[1764690674269,7.32495028,138.23,138.21,0.05278155]
[1764690674461,76.10495028,138.23,138.21,0.05278155]
[1764690674662,7.32495028,138.23,138.21,0.05278155]
[1764690675365,0.05495028,138.23,138.21,0.05278155]
[1764690675572,7.27,138.34,138.22,6.96]
[1764690675759,7.27,138.32,138.22,6.96]
[1764690676466,7.27,138.3,138.2,6.96]
[1764690676767,0.04619886,138.26,138.24,0.05197159]
[1764690677366,0.04619886,138.26,138.24,7.01197159]
[1764690677767,7.27,138.34,138.24,7.01197159]
[1764690677961,124.19436809,138.42,138.25,6.96]
[1764690678167,7.27,138.37,138.25,6.96]
[1764690678368,7.27,138.37,138.26,6.96]
[1764690678575,7.27,138.37,138.27,6.96]
[1764690678871,0.0552879,138.33,138.31,0.04614453]
[1764690679271,0.0552879,138.33,138.31,7.00614453]
[1764690679668,68.72,138.4,138.31,7.00614453]
[1764690679976,7.27,138.39,138.31,6.96]
[1764690680574,0.04895562,138.36,138.34,0.05013695]
[1764690681965,7.31895562,138.36,138.34,0.05013695]
[1764690682360,0.04895562,138.36,138.34,7.01013695]
[1764690683472,101.1228,138.46,138.34,7.01013695]
[1764690683473,7.27,138.52,138.38,101.1775]
[1764690683661,7.27,138.52,138.41,6.96]
[1764690683862,7.27,138.5,138.36,6.96]
[1764690684062,7.27,138.5,138.37,6.96]
[1764690684376,68.64,138.49,138.38,6.96]
[1764690684673,0.05160672,138.45,138.42,0.0522529]
[1764690685473,0.05160672,138.45,138.42,7.0122529]
[1764690685662,0.05160672,138.45,138.42,0.0522529]
[1764690688272,7.32160672,138.45,138.42,0.0522529]
[1764690688775,0.05160672,138.45,138.42,0.0522529]
[1764690689580,101.0787,138.52,138.42,0.0522529]
[1764690689581,7.27,138.59,138.42,7.0122529]
[1764690689882,7.27,138.59,138.47,13.46]
[1764690689883,75.81,138.59,138.47,13.46]
[1764690690068,75.81,138.59,138.47,6.96]
[1764690690069,7.27,138.58,138.47,6.96]
[1764690690270,7.27,138.58,138.48,6.96]
[1764690690471,7.27,138.61,138.5,6.96]
[1764690690671,0.04841992,138.57,138.54,0.0508206]
[1764690690878,7.31841992,138.57,138.54,0.0508206]
[1764690691177,0.04841992,138.57,138.54,7.0108206]
[1764690691381,11.43030561,138.76,138.54,7.0108206]
[1764690691382,7.27,138.67,138.54,7.0108206]
[1764690691573,7.27,138.67,138.54,6.96]
[1764690692074,7.27,138.67,138.54,108.0171]
[1764690692278,100.8888,138.78,138.59,101.0206]
[1764690692475,7.27,138.73,138.61,6.96]
[1764690692668,7.27,138.71,138.61,6.96]
[1764690692874,75.75,138.7,138.61,6.96]
[1764690693074,7.27,138.69,138.54,108.018]
[1764690693271,108.2327,138.68,138.55,6.96]
[1764690693476,7.27,138.62,138.6,0.04758038]
[1764690694083,7.27,138.7,138.6,7.00758038]
[1764690694272,68.46,138.72,138.61,6.96]
[1764690694471,5.27140496,138.81,138.6,6.96]
[1764690694677,7.27,138.72,138.6,6.96]
[1764690694868,6.84,138.7,138.6,6.96]
[1764690695291,6.84,138.75,138.65,7.12]
[1764690696073,75.26,138.75,138.65,7.12]
[1764690696273,75.26,138.75,138.69,0.05188184]
[1764690696480,0.04731888,138.71,138.69,0.05188184]
[1764690696679,0.05510633,138.71,138.69,0.04905333]
[1764690697279,100.8673,138.81,138.69,7.16905333]
[1764690697280,6.84,138.8,138.69,7.16905333]
[1764690697578,6.84,138.8,138.69,7.12]
[1764690697785,6.84,138.8,138.7,7.12]
[1764690698282,100.882,138.79,138.74,0.05083622]
[1764690698479,6.84,138.76,138.65,7.12]
[1764690699380,0.04935783,138.72,138.66,6.85]
[1764690699585,6.47,138.8,138.69,6.89722001]
[1764690699778,6.47,138.8,138.65,22.14950099]
[1764690699779,6.47,138.79,138.65,22.14950099]
[1764690700083,6.47,138.77,138.65,6.85]
[1764690700483,8.83337633,138.79,138.65,6.85]
[1764690700484,6.47,138.76,138.65,6.85]
[1764690700681,6.47,138.71,138.61,6.85]
[1764690700991,6.47,138.71,138.61,28.41987944]
[1764690701173,74.81,138.71,138.61,28.41987944]
[1764690701373,6.47,138.69,138.61,21.56987944]
[1764690701673,6.47,138.69,138.57,6.85]
[1764690701674,0.05250314,138.66,138.64,0.05398551]
[1764690701872,6.5213908,138.66,138.57,29.01708377]
[1764690702088,6.47,138.66,138.57,6.85]
[1764690702473,6.47,138.66,138.49,169.4537]
[1764690702474,6.47,138.65,138.52,6.85]
[1764690702672,74.81,138.64,138.52,6.85]
[1764690702879,6.47,138.62,138.52,21.41931323]
[1764690703081,6.47,138.62,138.48,6.85]
[1764690703082,6.47,138.62,138.57,0.04720689]
[1764690703382,6.47,138.58,138.48,28.97079158]
[1764690703786,101.0086,138.62,138.48,28.97079158]
[1764690703787,8.83337633,138.63,138.49,6.85]
[1764690703980,6.47,138.61,138.49,6.85]
[1764690704281,0.04665117,138.56,138.54,6.89995291]
[1764690704483,68.32,138.67,138.54,6.85]
[1764690704674,100.9762,138.66,138.49,6.85]
[1764690704988,100.9994,138.63,138.49,6.85]
[1764690705284,101.0027,138.62,138.49,6.85]
[1764690705487,0.05337676,138.57,138.54,0.04788351]
[1764690706280,1.44,138.56,138.45,6.85]
[1764690706580,6.47,138.53,138.41,6.85]
[1764690706985,6.47,138.52,138.41,6.85]
[1764690707179,6.47,138.52,138.42,6.85]
[1764690707376,0.04836135,138.48,138.46,0.04739349]
[1764690708190,0.04836135,138.48,138.46,6.89739349]
[1764690708483,6.47,138.56,138.46,8.33739349]
[1764690708679,123.90992733,138.63,138.48,107.9543]
[1764690708880,6.47,138.61,138.48,107.9543]
[1764690709078,68.3,138.6,138.5,6.85]
[1764690709275,6.47,138.55,138.54,0.05449197]
[1764690709583,6.47,138.55,138.47,6.4995]
[1764690709781,101.0066,138.62,138.47,6.4995]
[1764690709782,0.0520775,138.52,138.49,6.89699106]
[1764690709976,0.04669983,138.52,138.49,0.05299351]
[1764690710376,6.47,138.62,138.53,107.9149]
[1764690710584,6.47,138.62,138.53,6.85]
[1764690710782,6.47,138.62,138.48,107.9515]
[1764690710974,6.47,138.62,138.49,6.85]
[1764690711379,6.47,138.61,138.5,6.4982]
[1764690711585,6.47,138.56,138.54,0.05100871]
[1764690711777,6.51561135,138.56,138.54,0.05323447]
[1764690711980,0.04561135,138.56,138.54,0.05323447]
[1764690712494,6.51561135,138.56,138.54,0.05323447]
[1764690712982,6.47,138.55,138.45,6.85]
[1764690713576,6.47,138.55,138.45,13.3506]
[1764690713988,0.04834652,138.51,138.49,0.0527706]
[1764690714487,6.51834652,138.51,138.49,0.0527706]
[1764690714680,0.04834652,138.51,138.49,0.0527706]
[1764690715594,6.51834652,138.51,138.49,0.0527706]
[1764690715992,6.51834652,138.51,138.42,6.5021]
[1764690716188,6.47,138.51,138.42,6.5021]
[1764690716383,6.47,138.51,138.4,114.5123]
[1764690716586,6.47,138.51,138.4,13.3531]
[1764690716882,6.47,138.5,138.37,101.1818]
[1764690717093,6.51551979,138.45,138.42,0.04790443]
[1764690718987,7.95551979,138.45,138.32,6.85]
[1764690719187,101.1193,138.46,138.32,6.85]
[1764690719188,6.5016,138.44,138.34,6.5057]
[1764690719391,6.47,138.43,138.34,6.5057]
[1764690719698,6.47,138.43,138.32,6.85]
[1764690720190,0.05202049,138.39,138.36,0.04805618]
[1764690720498,6.52433271,138.39,138.36,0.05254498]
[1764690720889,0.05433271,138.39,138.36,0.05254498]
[1764690721083,6.52433271,138.39,138.26,108.1113]
[1764690721285,6.47,138.39,138.27,6.85]
[1764690721483,6.47,138.38,138.24,6.5104]
[1764690721686,6.47,138.38,138.24,108.1289]
[1764690721885,6.47,138.38,138.25,6.85]
[1764690722092,6.47,138.36,138.24,6.5108]
[1764690722290,6.47,138.32,138.21,108.151]
[1764690722487,68.24,138.31,138.25,101.272]
[1764690722695,6.47,138.36,138.27,108.1062]
[1764690722900,6.47,138.36,138.27,6.85]
[1764690723190,187.6854,138.46,138.3,101.2349]
[1764690723191,68.24,138.39,138.3,101.2349]
[1764690723389,0.04874998,138.33,138.3,0.0537199]
[1764690723591,0.04578304,138.33,138.31,6.5072]
[1764690723797,0.04578304,138.33,138.3,0.05028304]
[1764690723998,0.04578304,138.33,138.32,6.85]
[1764690724195,86.56,138.46,138.37,108.034]
[1764690724497,6.47,138.45,138.36,101.1882]
[1764690724698,6.47,138.45,138.37,101.1836]
[1764690724897,6.47,138.45,138.38,6.5039]
[1764690725207,0.04929387,138.43,138.4,0.05297644]
[1764690726203,6.51929387,138.43,138.4,0.05297644]
[1764690726792,0.04929387,138.43,138.4,6.90297644]
[1764690726996,0.04929387,138.43,138.41,6.85]
[1764690727290,0.04929387,138.43,138.41,114.5066]
[1764690727492,6.47,138.5,138.42,6.85]
[1764690727686,6.47,138.5,138.37,6.85]
[1764690727889,6.47,138.49,138.37,108.0341]
[1764690728085,74.71,138.53,138.44,107.9828]
[1764690728290,6.47,138.52,138.41,101.1524]
[1764690728492,0.05287461,138.48,138.45,0.05326965]
[1764690729090,6.52287461,138.48,138.45,0.05326965]
[1764690730498,6.52287461,138.48,138.45,6.73326965]
[1764690730499,0.05287461,138.48,138.45,6.73326965]
[1764690730697,11.75192633,138.59,138.5,101.089]
[1764690730894,11.75192633,138.59,138.51,6.4978]
[1764690730895,6.47,138.59,138.51,6.4978]
[1764690731092,6.47,138.59,138.48,6.68]
[1764690731299,6.47,138.57,138.46,6.68]
[1764690731796,68.22,138.58,138.4,115.68547153]
[1764690731797,6.47,138.52,138.4,6.68]
[1764690731996,6.47,138.52,138.43,107.8183]
[1764690732390,6.47,138.52,138.43,6.68]
[1764690732592,6.47,138.56,138.45,107.8056]
[1764690732901,0.04614544,138.52,138.49,6.73204506]
[1764690733090,0.04614544,138.52,138.49,0.05204506]
[1764690733296,0.04614544,138.52,138.49,6.73204506]
[1764690733497,6.47,138.65,138.54,13.1763]
[1764690733697,6.47,138.65,138.56,101.0452]
[1764690733897,6.47,138.65,138.55,6.68]
[1764690734200,6.47,138.65,138.49,101.0943]
[1764690734201,6.47,138.65,138.53,6.497]
[1764690734404,6.47,138.65,138.52,6.68]
[1764690734594,6.52438329,138.6,138.58,0.04556965]
[1764690734794,6.47,138.6,138.52,6.68]
[1764690735000,0.0515796,138.6,138.55,0.05519233]
[1764690735502,0.0515796,138.6,138.55,6.73519233]
[1764690736410,0.0515796,138.6,138.57,101.0379]
[1764690736603,6.47,138.69,138.59,107.7008]
[1764690736794,6.47,138.69,138.59,6.68]
[1764690737502,6.52140766,138.65,138.63,0.05468538]
[1764690737697,68.16,138.71,138.64,6.68]
[1764690737893,6.47,138.74,138.64,6.68]
[1764690738613,6.47,138.73,138.6,6.68]
[1764690738803,6.47,138.73,138.65,0.05484244]
[1764690738804,0.05138282,138.68,138.65,0.05484244]
[1764690739114,0.00138282,138.68,138.65,6.73484244]
[1764690739303,6.47,138.78,138.65,13.22634244]
[1764690739604,6.47,138.78,138.66,6.68]
[1764690740007,6.47,138.78,138.66,13.1707]
[1764690740207,6.49645493,138.73,138.71,0.04619415]
[1764690740396,0.02645493,138.73,138.71,0.04619415]
[1764690741008,6.47,138.83,138.72,6.68]
[1764690741399,6.47,138.83,138.66,6.68]
[1764690741400,6.47,138.82,138.66,6.68]
[1764690741710,6.47,138.77,138.63,6.4925]
[1764690742011,6.47,138.83,138.72,100.9289]
[1764690742214,6.47,138.83,138.76,0.05198006]
[1764690743009,6.47,138.79,138.66,6.68]
[1764690743207,6.47,138.78,138.66,13.171]
[1764690743504,6.47,138.78,138.66,6.68]
[1764690743505,6.47,138.75,138.66,6.68]
[1764690743694,74.53,138.75,138.66,6.68]
[1764690743900,6.47,138.74,138.62,6.68]
[1764690744102,0.04811525,138.69,138.67,0.04974784]
[1764690744308,6.47,138.69,138.67,0.04974784]
[1764690744500,6.51609193,138.69,138.58,6.68]
[1764690744705,6.47,138.69,138.58,6.68]
[1764690745208,6.47,138.67,138.54,6.68]
[1764690745507,6.47,138.66,138.54,6.68]
[1764690745712,6.47,138.61,138.59,0.0537503]
[1764690745910,6.47,138.61,138.49,6.68]
[1764690746308,74.49,138.61,138.5,6.68]
[1764690746509,6.47,138.66,138.54,6.68]
[1764690746714,6.47,138.64,138.54,6.68]
[1764690746905,0.0472462,138.6,138.58,0.05460788]
[1764690747314,6.5172462,138.6,138.58,0.05460788]
[1764690748519,6.5172462,138.6,138.49,13.179]
[1764690748707,6.47,138.6,138.5,6.68]
[1764690749017,68.0,138.59,138.5,6.68]
[1764690749211,6.47,138.59,138.5,6.68]
[1764690749416,6.47,138.59,138.52,101.0739]
[1764690749630,0.04865901,138.56,138.53,6.72854118]
[1764690749915,0.05425766,138.56,138.53,13.2232867]
[1764690750715,6.52425766,138.56,138.53,0.0460867]
[1764690750916,7.96425766,138.56,138.44,6.68]
[1764690751115,6.47,138.54,138.4,6.68]
[1764690751313,6.47,138.52,138.36,107.8707]
[1764690751510,6.47,138.52,138.38,101.1758]
[1764690751714,6.47,138.52,138.36,107.8707]
[1764690751916,6.47,138.47,138.32,101.2204]
[1764690752121,6.52342391,138.46,138.32,101.2203]
[1764690752413,6.47,138.44,138.32,6.68]
[1764690753323,0.048585,138.39,138.37,0.05271653]
[1764690753519,0.05151772,138.39,138.37,0.05271653]
[1764690753717,6.79,138.49,138.39,101.1672]
[1764690754212,6.79,138.49,138.4,101.16]
[1764690754519,6.79,138.49,138.39,101.1672]
[1764690754520,6.79,138.49,138.39,6.36]
[1764690754709,0.04956457,138.45,138.43,0.05542969]
[1764690754909,168.73602671,138.59,138.43,107.55622969]
[1764690754910,6.79,138.55,138.43,107.55622969]
[1764690755220,74.77,138.55,138.44,107.49]
[1764690755414,74.77,138.55,138.44,6.36]
[1764690755415,6.79,138.54,138.44,6.36]
[1764690755622,6.79,138.54,138.42,107.504]
[1764690755913,74.77,138.53,138.42,114.0063]
[1764690756111,0.04738941,138.49,138.47,0.04557884]
[1764690757519,6.79,138.57,138.47,6.40557884]
[1764690757717,74.77,138.56,138.47,6.36]
[1764690758419,6.79,138.56,138.47,113.9705]
[1764690758721,0.04595838,138.53,138.5,0.04847638]
[1764690759424,0.04595838,138.53,138.5,6.25847638]
[1764690760007,0.04595838,138.53,138.5,0.04847638]
[1764690760821,101.0155,138.61,138.52,107.2821]
[1764690760822,6.1,138.61,138.52,107.2821]
[1764690761122,6.1,138.65,138.54,6.21]
[1764690761919,0.04665752,138.61,138.58,0.0487782]
[1764690762116,6.14665752,138.61,138.58,0.0487782]
[1764690762828,7.58665752,138.61,138.5,6.21]
[1764690763024,6.1,138.61,138.5,12.7085]
[1764690763221,6.1,138.61,138.5,113.7983]
[1764690763421,6.1,138.61,138.51,107.2926]
[1764690763724,0.05495846,138.57,138.55,0.04922243]
[1764690764320,0.05495846,138.57,138.55,6.25922243]
[1764690764517,0.05495846,138.57,138.55,0.04922243]
[1764690770825,0.05495846,138.57,138.55,6.25922243]
[1764690771124,0.05495846,138.57,138.55,107.31282243]
[1764690771332,0.05495846,138.57,138.56,6.21]
[1764690771929,0.05495846,138.57,138.55,0.04922243]
[1764690773138,6.15495846,138.57,138.55,0.04922243]
[1764690774138,6.15495846,138.57,138.47,6.21]
[1764690774327,67.82,138.59,138.49,6.21]
[1764690774535,6.1,138.59,138.49,6.21]
[1764690774732,6.1,138.58,138.5,6.4982]
[1764690774938,6.1,138.58,138.45,107.3302]
[1764690774939,67.82,138.57,138.45,107.3302]
[1764690775148,6.1,138.56,138.45,107.3302]
[1764690775333,0.05539086,138.52,138.5,0.05356021]
[1764690775828,0.05539086,138.52,138.5,12.76196021]
[1764690776023,0.05539086,138.52,138.51,6.21]
[1764690776223,0.05539086,138.52,138.5,12.76196021]
[1764690778235,0.05539086,138.52,138.5,6.55196021]
[1764690778742,0.05539086,138.52,138.5,0.05356021]
[1764690779239,0.05539086,138.52,138.5,6.55196021]
[1764690779934,0.05539086,138.52,138.5,0.05356021]
[1764690780927,6.15539086,138.52,138.5,0.05356021]
[1764690781237,6.15539086,138.52,138.42,109.95788268]
[1764690781238,6.15539086,138.52,138.43,6.21]
[1764690781443,6.1,138.52,138.43,6.21]
[1764690781734,6.1,138.52,138.46,101.1186]
[1764690781942,6.1,138.52,138.44,6.21]
[1764690782130,0.05279415,138.49,138.47,0.04759471]
[1764690782337,6.15279415,138.49,138.47,0.04759471]
[1764690782741,6.15279415,138.49,138.35,15.02118268]
[1764690782742,7.59279415,138.49,138.35,15.02118268]
[1764690782939,6.1,138.48,138.35,107.4071]
[1764690783335,6.1,138.47,138.35,6.21]
[1764690783537,6.1,138.45,138.3,6.21]
[1764690783847,6.1,138.42,138.3,6.21]
[1764690784029,6.1,138.38,138.36,0.04757046]
[1764690784230,6.1,138.38,138.3,6.21]
[1764690784444,6.1,138.38,138.26,30.79003028]
[1764690784445,6.1,138.38,138.27,6.21]
[1764690784741,101.134,138.44,138.34,6.21]
[1764690784742,6.1,138.42,138.34,6.21]
[1764690784946,6.1,138.42,138.3,6.21]
[1764690785131,6.1,138.42,138.33,6.21]
[1764690785336,0.051771,138.39,138.36,0.04756349]
[1764690785746,0.051771,138.39,138.36,6.25756349]
[1764690786241,0.051771,138.39,138.36,0.04756349]
[1764690786739,6.151771,138.39,138.36,0.04756349]
[1764690786939,0.051771,138.39,138.36,0.04756349]
[1764690787130,6.151771,138.39,138.36,0.04756349]
[1764690788042,0.051771,138.39,138.36,6.25756349]
[1764690788238,6.151771,138.39,138.36,0.04756349]
[1764690789245,6.02,138.37,138.36,0.04756349]
[1764690789841,6.071771,138.39,138.36,0.04756349]
[1764690790046,6.02,138.38,138.36,0.04756349]
[1764690790346,0.051771,138.39,138.36,0.04756349]
[1764690790561,0.051771,138.39,138.36,6.40756349]
[1764690791052,6.02,138.46,138.38,6.36]
[1764690791340,6.02,138.46,138.35,101.1838]
[1764690791543,6.02,138.46,138.37,6.5038]
[1764690791943,6.02,138.46,138.35,6.36]
[1764690792447,6.07179895,138.42,138.39,0.04826066]
[1764690792754,6.02,138.51,138.4,6.36]
[1764690792945,73.74,138.51,138.4,107.5093]
[1764690793143,73.74,138.51,138.4,12.8624]
[1764690793343,6.02,138.5,138.4,12.8624]
[1764690793648,6.02,138.49,138.4,12.8624]
[1764690793847,6.06569333,138.46,138.44,0.04952051]
[1764690794048,6.0750318,138.46,138.44,0.04952051]
[1764690794543,6.0750318,138.46,138.3,371.3919]
[1764690794544,107.1484,138.44,138.3,6.36]
[1764690794849,101.1692318,138.46,138.3,6.36]
[1764690794850,6.02,138.42,138.3,6.36]
[1764690795438,0.05059805,138.37,138.35,0.04884653]
[1764690795636,0.05233976,138.37,138.35,0.04884653]
[1764690796439,6.07233976,138.37,138.3,6.36]
[1764690796750,6.07233976,138.37,138.29,6.5076]
[1764690797050,6.02,138.37,138.29,6.5076]
[1764690797447,0.05496833,138.34,138.32,0.05533104]
[1764690799554,67.7,138.4,138.32,6.41533104]
[1764690799846,67.68,138.4,138.32,6.36]
[1764690800242,6.02,138.42,138.33,6.36]
[1764690800442,0.04788271,138.39,138.36,0.04681691]
[1764690800638,6.06788271,138.39,138.36,0.04681691]
[1764690801540,6.06788271,138.39,138.28,6.36]
[1764690801746,6.02,138.39,138.28,6.36]
[1764690802254,6.02,138.39,138.29,6.5075]
[1764690802552,6.02,138.36,138.24,6.36]
[1764690802755,101.1769,138.37,138.24,6.36]
[1764690802756,6.02,138.34,138.24,6.36]
[1764690803052,6.02,138.32,138.19,6.36]
[1764690803251,6.02,138.32,138.2,6.36]
[1764690803648,12.5266,138.32,138.22,6.5109]
[1764690803853,0.05185957,138.27,138.25,0.05209445]
[1764690804055,0.05441683,138.27,138.25,0.05209445]
[1764690804961,0.05441683,138.27,138.25,6.41209445]
[1764690805253,0.05441683,138.27,138.25,0.05209445]
[1764690805852,67.64,138.35,138.26,6.36]
[1764690806248,67.64,138.35,138.29,6.5075]
[1764690806750,0.05134552,138.33,138.31,0.0529345]
[1764690807552,6.02,138.29,138.18,6.36]
[1764690807750,6.02,138.29,138.22,6.5109]
[1764690808051,67.64,138.31,138.23,6.36]
[1764690808255,67.64,138.31,138.23,12.8705]
[1764690808444,67.64,138.31,138.26,0.04588486]
[1764690808752,0.05209331,138.28,138.26,0.04588486]
[1764690809950,0.05209331,138.28,138.26,6.40588486]
[1764690810155,6.02,138.37,138.26,7.84588486]
[1764690810357,6.02,138.37,138.27,6.36]
[1764690811255,0.0515312,138.33,138.31,0.05071219]
[1764690813560,0.0515312,138.33,138.31,5.93071219]
[1764690813955,5.57,138.45,138.33,5.88]
[1764690814457,5.57,138.43,138.33,5.88]
[1764690814663,5.57,138.43,138.28,5.88]
[1764690814860,0.04941081,138.37,138.34,0.04713719]
[1764690815164,0.04949861,138.37,138.34,0.04578284]
[1764690816654,0.04949861,138.37,138.34,5.92578284]
[1764690817158,0.04949861,138.37,138.34,12.43098284]
[1764690817362,0.04949861,138.37,138.35,5.88]
[1764690817865,73.17,138.47,138.37,5.88]
[1764690818160,67.6,138.47,138.38,5.88]
[1764690818350,67.6,138.47,138.4,5.88]
[1764690818756,0.04802321,138.45,138.42,0.04653899]
[1764690820666,0.04802321,138.45,138.34,110.02577182]